bitfinex-derivatives/quotes_ETHF0:USTF0_20250212
["timestamp","ask_amount","ask_price","bid_price","bid_amount"]
[1739398990379,19.165,2733.3,2731.4,3.2078]
[1739398990574,0.05803426,2733.2,2732.0,3.20778008]
[1739398990773,0.05803426,2733.2,2731.0,3.2078]
[1739398990977,0.00548506,2732.6,2731.7,3.20778008]
[1739398991169,3.2078,2732.0,2731.7,3.20778008]
[1739398991373,0.00548506,2732.6,2731.3,3.94001]
[1739398991575,0.00548506,2732.6,2731.6,3.20778008]
[1739398991776,0.05803919,2732.5,2731.6,3.20778008]
[1739398991972,0.05803919,2732.5,2732.0,3.20778008]
[1739398992177,0.00548506,2732.6,2731.6,3.20778008]
[1739398992383,0.05803986,2732.5,2731.1,3.2078]
[1739398992581,3.2078,2731.7,2731.2,3.20778008]
[1739398992780,19.165,2731.6,2731.4,3.20778008]
[1739398992974,19.165,2731.6,2730.6,3.2078]
[1739398993169,19.165,2731.6,2731.0,3.20778008]
[1739398993473,0.00548506,2731.4,2731.3,3.20778008]
[1739398993674,0.00548506,2731.4,2730.6,3.20778008]
[1739398993879,3.2078,2731.2,2730.7,3.20778008]
[1739398994274,3.2078,2730.8,2730.2,3.2078]
[1739398994573,3.2078,2730.8,2730.2,3.20778008]
[1739398994780,3.2078,2730.8,2730.1,3.2078]
[1739398994781,0.00548506,2731.4,2730.0,3.2078]
[1739398994973,0.05807074,2731.3,2730.5,3.20778008]
[1739398995170,3.2078,2731.1,2730.4,3.20778008]
[1739398995471,3.2078,2730.5,2729.7,3.2078]
[1739398995677,3.2078,2730.2,2729.7,3.2078]
[1739398995874,3.734,2730.0,2727.9,3.2078]
[1739398996074,3.734,2730.0,2728.2,3.20778008]
[1739398996075,3.2078,2729.8,2728.2,3.20778008]
[1739398996274,3.2078,2729.8,2727.5,3.2078]
[1739398996275,3.2078,2729.6,2726.9,3.2078]
[1739398996582,3.2078,2728.8,2726.9,3.2078]
[1739398996772,3.2078,2728.5,2726.8,3.2078]
[1739398997081,3.2078,2727.5,2726.8,3.2078]
[1739398997374,3.2078,2728.6,2726.5,3.94128]
[1739398997579,0.00549561,2727.9,2726.5,3.2078]
[1739398997786,3.2078,2727.3,2726.5,3.2078]
[1739398998076,3.2078,2729.4,2726.8,3.2078]
[1739398998272,0.05812853,2729.3,2727.1,3.2078]
[1739398998472,3.2078,2727.2,2726.2,3.2078]
[1739398998672,0.05812853,2729.3,2724.9,2.2336]
[1739398998673,22.3858,2727.8,2725.2,3.2078]
[1739398998873,3.2078,2726.2,2723.0,3.2078]
[1739398999076,8.75741384,2726.9,2723.0,3.2078]
[1739398999077,3.2078,2725.4,2723.0,3.2078]
[1739398999275,0.00549561,2724.9,2724.3,0.00549561]
[1739399000373,3.2078,2724.8,2724.3,0.00549561]
[1739399000570,3.21329561,2724.9,2724.3,0.00549561]
[1739399000974,0.00549561,2724.9,2724.3,3.21329561]
[1739399001676,0.00549561,2724.9,2724.6,3.2078]
[1739399001885,0.00549561,2724.9,2724.8,0.73396]
[1739399002077,0.00549561,2724.9,2724.3,0.00549561]
[1739399002280,22.4078,2726.3,2725.0,0.7339]
[1739399002583,22.4078,2726.3,2724.7,3.2078]
[1739399003085,19.2,2726.3,2724.7,3.94178]
[1739399003287,3.2078,2726.1,2724.7,3.2078]
[1739399003583,0.0055062,2725.8,2725.0,3.2078]
[1739399004382,0.0055062,2725.8,2725.3,3.2078]
[1739399004885,0.0055062,2725.8,2725.0,3.2078]
[1739399005185,0.0055062,2725.8,2725.3,3.2078]
[1739399005881,1.8671,2727.7,2725.3,3.2078]
[1739399005882,3.2078,2728.5,2725.8,1.83421]
[1739399006081,3.2078,2728.2,2726.7,3.2078]
[1739399006277,19.207,2728.8,2726.7,3.2078]
[1739399006478,19.207,2728.8,2727.0,3.2078]
[1739399006782,3.2078,2729.7,2727.4,9.75773148]
[1739399006974,3.2078,2730.0,2729.0,0.73282]
[1739399007286,19.207,2730.1,2728.8,0.73287]
[1739399007580,19.207,2730.1,2728.7,3.2078]
[1739399007883,0.00549541,2729.8,2729.2,0.00549541]
[1739399008978,0.00549541,2729.8,2729.3,3.2078]
[1739399009392,0.00549541,2729.8,2729.4,3.2078]
[1739399009780,0.00549541,2729.8,2729.2,0.00549541]
[1739399010678,0.00549541,2729.8,2729.3,3.2078]
[1739399011988,9.75773148,2731.5,2729.3,9.2078]
[1739399012188,3.2078,2730.8,2729.2,0.00549541]
[1739399012386,3.2078,2730.3,2729.6,3.2078]
[1739399012580,22.4088,2730.3,2729.6,3.2078]
[1739399012788,22.4088,2730.3,2729.2,3.21329541]
[1739399012982,3.2078,2730.0,2729.3,0.73274]
[1739399013282,3.2078,2730.0,2729.3,3.2078]
[1739399013283,0.00549541,2730.0,2729.3,3.2078]
[1739399013483,0.00549541,2730.0,2729.9,0.73259]
[1739399013684,3.2078,2732.1,2729.9,1.83146]
[1739399013988,3.2078,2732.2,2731.4,0.73217]
[1739399014188,19.201,2732.3,2730.9,3.2078]
[1739399014391,19.201,2732.3,2731.2,3.2078]
[1739399014585,3.2078,2733.0,2731.8,0.73207]
[1739399014786,3.2078,2733.0,2730.4,6.54993148]
[1739399014787,0.00549541,2732.0,2731.7,3.2078]
[1739399015091,0.00549541,2732.0,2731.5,0.00549541]
[1739399015389,0.00549541,2732.0,2731.7,0.73209]
[1739399015785,0.00549541,2732.0,2731.5,3.21329541]
[1739399016285,19.199,2731.9,2730.4,3.2078]
[1739399016486,3.2078,2731.1,2730.4,3.2078]
[1739399016790,3.2078,2731.1,2730.1,3.2078]
[1739399017092,3.2078,2731.6,2730.1,3.2078]
[1739399017285,19.199,2731.9,2730.7,3.2078]
[1739399017588,0.00549541,2731.1,2730.9,0.7323]
[1739399017895,0.00549541,2731.1,2731.0,3.9401]
[1739399018090,22.4028,2732.9,2731.0,3.2078]
[1739399018289,19.195,2732.9,2731.3,3.2078]
[1739399018792,3.2078,2731.7,2731.0,3.2078]
[1739399018989,3.2078,2732.3,2730.7,3.2078]
[1739399019184,3.2078,2731.9,2730.0,0.00483912]
[1739399019490,3.2078,2731.3,2731.2,0.00549541]
[1739399019692,19.195,2731.3,2731.2,0.00549541]
[1739399019886,25.195,2731.3,2731.2,0.00549541]
[1739399020087,0.00549541,2731.8,2731.2,0.00549541]
[1739399020483,0.00549541,2731.8,2731.3,0.7322]
[1739399020897,0.00549541,2731.8,2731.2,3.21329541]
[1739399023294,19.189,2733.4,2732.3,3.2078]
[1739399023486,3.2078,2733.1,2732.4,3.2078]
[1739399023687,3.2078,2733.1,2731.9,3.2078]
[1739399023895,3.2078,2732.9,2732.5,0.00549541]
[1739399024091,3.2078,2732.9,2731.2,3.2078]
[1739399024297,3.2078,2732.9,2731.6,3.2078]
[1739399024491,0.0034257,2733.0,2731.6,3.2078]
[1739399024895,0.0034257,2733.0,2732.4,0.73191]
[1739399025398,0.0034257,2733.0,2732.5,0.73188]
[1739399025595,0.0034257,2733.0,2732.5,3.2078]
[1739399026301,0.0034257,2733.0,2732.4,0.00549541]
[1739399026597,3.2078,2732.8,2732.4,0.00549541]
[1739399026797,0.0034257,2733.0,2732.4,0.00549541]
[1739399026798,3.2078,2732.9,2732.4,0.00549541]
[1739399026998,0.0034257,2733.0,2732.4,0.00549541]
[1739399027200,3.2078,2732.7,2732.4,0.00549541]
[1739399027397,0.0034257,2733.0,2732.4,0.00549541]
[1739399027895,0.0034257,2733.0,2732.5,3.2078]
[1739399028097,6.54993148,2734.4,2732.5,3.2078]
[1739399028299,3.2078,2733.0,2732.4,3.21329541]
[1739399028601,6.54993148,2732.6,2730.0,0.00483912]
[1739399028800,6.54993148,2731.9,2730.0,0.00483912]
[1739399029096,3.2078,2731.7,2730.3,3.2078]
[1739399029295,3.2078,2731.6,2731.0,3.2078]
[1739399029692,3.2078,2731.6,2731.0,6.00549541]
[1739399029693,0.00549541,2731.6,2731.0,6.00549541]
[1739399029900,3.2078,2733.1,2731.5,3.2078]
[1739399030096,19.181,2733.4,2732.4,0.73191]
[1739399030298,19.181,2733.4,2732.2,0.73197]
[1739399030494,0.05802441,2733.3,2732.1,3.2078]
[1739399030697,3.2078,2732.9,2732.1,3.2078]
[1739399030898,19.181,2733.4,2732.1,3.2078]
[1739399031100,0.00549541,2733.0,2732.4,0.00549541]
[1739399032792,0.00549541,2733.0,2732.4,0.73741541]
[1739399033001,0.00549541,2733.0,2732.7,3.2078]
[1739399033203,0.00549541,2733.0,2732.8,0.7318]
[1739399033404,0.00549541,2733.0,2732.7,3.2078]
[1739399033905,19.181,2733.4,2732.7,9.2078]
[1739399034101,19.18,2734.4,2733.1,3.2078]
[1739399034302,28.93773148,2735.5,2733.5,3.2078]
[1739399034503,0.05798046,2735.2,2733.5,3.2078]
[1739399034703,0.05798046,2735.2,2733.5,3.93942]
[1739399034899,3.72598046,2735.2,2733.5,3.2078]
[1739399035100,3.72598046,2735.2,2731.0,0.8702667]
[1739399035101,0.05798046,2735.1,2734.1,0.00549541]
[1739399035303,0.05798046,2735.4,2734.2,0.73143]
[1739399035602,0.05797242,2735.3,2734.1,0.00549541]
[1739399035804,3.26577242,2735.2,2734.1,0.00549541]
[1739399035999,3.2078,2734.6,2734.1,0.00549541]
[1739399036607,0.0579914,2734.5,2734.1,0.00549541]
[1739399036796,9.75773148,2734.9,2733.3,3.2078]
[1739399037002,9.75773148,2734.9,2733.6,3.2078]
[1739399037003,0.05798991,2734.8,2733.6,3.2078]
[1739399037200,3.26578991,2734.8,2733.6,3.2078]
[1739399037400,3.2078,2734.3,2733.6,3.2078]
[1739399037807,6.54993148,2734.9,2733.6,3.2078]
[1739399038007,0.00546024,2734.2,2733.7,0.00548486]
[1739399038505,3.2078,2733.9,2732.7,3.2078]
[1739399038708,3.2078,2733.2,2732.6,3.2078]
[1739399038902,3.2078,2733.2,2731.2,3.2078]
[1739399039205,0.05802667,2733.1,2731.5,3.2078]
[1739399039415,3.2078,2733.5,2731.5,3.2078]
[1739399039707,0.00548486,2732.6,2732.0,0.00548486]
[1739399040311,19.17948486,2732.6,2732.0,0.00548486]
[1739399040609,3.2078,2732.5,2732.0,0.00548486]
[1739399041205,19.17948486,2732.6,2732.0,0.00548486]
[1739399041206,3.2078,2732.2,2732.0,0.00548486]
[1739399041605,3.2078,2735.0,2732.1,22.0069529]
[1739399041806,3.2078,2735.0,2734.6,3.2078]
[1739399042000,3.2078,2736.0,2734.6,3.2078]
[1739399042196,6.54993148,2736.3,2734.6,3.2078]
[1739399042401,0.73095,2736.1,2734.9,3.2078]
[1739399042603,6.54993148,2736.3,2734.9,3.2078]
[1739399042806,3.2078,2735.7,2735.2,0.00548486]
[1739399043011,0.00546024,2735.8,2735.3,3.2078]
[1739399043208,3.2078,2735.4,2735.2,0.00548486]
[1739399043410,0.00546024,2735.8,2735.2,0.00548486]
[1739399044412,0.00546024,2735.8,2735.3,3.2078]
[1739399045507,0.00546024,2735.8,2735.7,3.2078]
[1739399046110,0.00546024,2735.8,2735.7,3.93884]
[1739399046306,19.175,2736.9,2735.8,0.73101]
[1739399046512,19.175,2736.9,2736.0,3.2078]
[1739399046822,19.175,2736.9,2736.0,3.93874]
[1739399047113,19.175,2736.9,2736.3,3.2078]
[1739399048216,19.175,2736.9,2735.2,0.00548486]
[1739399048217,25.71493148,2737.5,2736.2,3.2078]
[1739399048609,25.71493148,2737.5,2736.5,3.2078]
[1739399048813,25.71493148,2737.5,2736.6,0.00548486]
[1739399049310,19.165,2737.5,2736.6,0.00548486]
[1739399049614,19.165,2737.5,2734.5,0.5211058]
[1739399049615,6.54993148,2736.9,2735.3,3.2078]
[1739399049815,3.2078,2736.8,2735.3,3.2078]
[1739399050116,3.2078,2736.7,2735.2,3.2078]
[1739399050319,6.54993148,2736.3,2733.8,3.2078]
[1739399050613,3.2078,2735.8,2734.7,3.2078]
[1739399050919,3.2078,2737.1,2735.0,3.2078]
[1739399051114,25.71493148,2737.5,2736.0,3.2078]
[1739399051115,19.165,2737.5,2736.0,3.2078]
[1739399051307,19.165,2737.5,2734.9,1.9431]
[1739399051308,19.165,2737.5,2737.4,0.73058]
[1739399051513,3.2078,2738.5,2737.2,3.2078]
[1739399051514,22.3678,2738.5,2737.3,0.73061]
[1739399051815,19.16,2738.5,2737.2,3.2078]
[1739399052318,19.16,2738.5,2737.6,0.00548486]
[1739399053116,3.26569724,2738.4,2737.6,0.00548486]
[1739399053315,3.2078,2738.0,2736.0,3.2078]
[1739399053612,3.2078,2737.6,2736.1,3.2078]
[1739399053814,3.2078,2738.3,2736.5,3.2078]
[1739399054014,6.54993148,2739.5,2738.2,3.2078]
[1739399054217,3.2078,2740.0,2739.4,3.2078]
[1739399054426,3.2078,2742.1,2739.9,3.2078]
[1739399054617,0.05782142,2742.0,2741.5,3.2078]
[1739399054819,3.2078,2742.1,2741.5,3.2078]
[1739399055118,3.2078,2744.8,2742.0,3.2078]
[1739399055414,3.2078,2744.8,2741.8,6.54993148]
[1739399055415,3.2078,2744.2,2742.4,3.2078]
[1739399055807,3.2078,2744.2,2743.0,0.00547275]
[1739399055808,0.00544451,2743.7,2743.0,0.00547275]
[1739399056012,0.72893,2743.6,2743.0,0.00547275]
[1739399056209,6.00544451,2743.7,2743.0,0.00547275]
[1739399056508,6.54993148,2743.3,2742.1,3.2078]
[1739399056717,9.75773148,2742.7,2741.8,3.2078]
[1739399057016,0.72929,2742.3,2741.0,3.2078]
[1739399057212,6.54993148,2747.1,2742.2,9.75773148]
[1739399057414,0.05730866,2747.0,2745.1,3.2078]
[1739399057616,8.35003148,2747.9,2745.4,3.2078]
[1739399057814,0.00546179,2746.3,2745.4,3.2078]
[1739399058208,0.00546179,2746.3,2744.6,6.54993148]
[1739399058209,6.00546179,2746.3,2744.3,3.2078]
[1739399058418,6.00546179,2746.3,2745.6,0.00546179]
[1739399058419,0.00546179,2746.3,2745.6,0.00546179]
[1739399059012,19.125,2747.8,2746.2,3.2078]
[1739399059213,19.125,2747.8,2745.6,0.00546179]
[1739399059214,6.54993148,2747.7,2745.9,3.2078]
[1739399059513,0.72823,2746.3,2745.2,3.2078]
[1739399059710,3.2078,2745.6,2745.0,3.2078]
[1739399060019,3.2078,2745.1,2744.1,3.2078]
[1739399060208,0.72852,2745.2,2743.3,1.9498]
[1739399060209,3.2078,2745.5,2743.7,3.2078]
[1739399060416,3.2078,2744.9,2744.2,3.2078]
[1739399060718,3.2078,2744.6,2744.3,0.00546179]
[1739399060918,0.72866,2744.7,2744.3,0.00546179]
[1739399061114,0.72865,2744.7,2744.3,0.00546179]
[1739399061323,0.72866,2744.7,2744.3,0.00546179]
[1739399061518,19.125,2744.8,2744.3,0.00546179]
[1739399062113,22.3328,2744.8,2744.3,0.00546179]
[1739399062320,19.125,2744.8,2744.3,0.00546179]
[1739399062522,19.125,2744.8,2743.4,3.2078]
[1739399062523,6.54993148,2744.5,2743.4,3.2078]
[1739399062711,3.2078,2743.5,2742.4,3.2078]
[1739399062917,6.54993148,2743.2,2741.8,3.2078]
[1739399063117,3.2078,2744.6,2741.8,3.2078]
[1739399063118,19.117,2744.2,2741.8,3.2078]
[1739399063418,19.117,2744.2,2743.9,3.2078]
[1739399063613,19.117,2744.2,2742.0,6.54993148]
[1739399063614,19.117,2745.1,2743.3,3.2078]
[1739399063819,19.117,2745.1,2742.6,6.54993148]
[1739399063820,0.00547186,2744.3,2744.1,3.2078]
[1739399064211,0.00547186,2744.3,2743.8,3.21327186]
[1739399064418,0.72899,2743.4,2742.9,3.2078]
[1739399064624,22.3248,2743.3,2742.9,3.2078]
[1739399064817,3.2078,2743.0,2741.7,3.2078]
[1739399065022,0.7293,2742.2,2741.7,3.2078]
[1739399065318,19.117,2743.3,2740.1,3.9376]
[1739399065319,0.72948,2741.6,2740.5,3.2078]
[1739399065525,3.2078,2742.5,2740.8,3.2078]
[1739399065712,19.168362,2742.4,2740.9,3.2078]
[1739399065920,0.72947,2741.6,2740.8,0.00547186]
[1739399066222,0.72962,2741.1,2739.9,3.2078]
[1739399066426,6.60731339,2741.5,2740.0,3.2078]
[1739399066427,19.111,2741.0,2740.0,3.2078]
[1739399066719,6.54993148,2740.9,2739.2,3.2078]
[1739399066922,0.05739945,2740.8,2738.8,3.2078]
[1739399067119,0.05739945,2740.8,2738.0,1.8363]
[1739399067120,0.73008,2739.4,2738.6,3.2078]
[1739399067311,6.54993148,2739.7,2738.6,3.2078]
[1739399067511,6.54993148,2739.7,2738.8,3.2078]
[1739399067512,0.00547186,2739.3,2738.8,3.2078]
[1739399067717,0.05743575,2739.2,2738.7,0.00547186]
[1739399069113,0.73013,2739.1,2738.7,0.00547186]
[1739399069321,0.05743575,2739.0,2738.7,0.00547186]
[1739399069529,0.73013,2739.1,2738.7,0.00547186]
[1739399069720,0.05743667,2739.0,2738.7,0.00547186]
[1739399069919,0.01547186,2739.3,2738.7,0.00547186]
[1739399069920,0.05743667,2738.9,2738.7,0.00547186]
[1739399070115,0.73013,2739.1,2738.7,0.00547186]
[1739399070323,0.05744051,2739.0,2738.7,0.00547186]
[1739399070621,3.2078,2738.8,2737.8,3.2078]
[1739399070823,3.2078,2738.4,2737.8,3.2078]
[1739399071024,19.123,2738.3,2737.8,3.2078]
[1739399071628,19.123,2738.3,2737.6,3.2078]
[1739399071819,19.123,2738.3,2737.8,0.00368741]
[1739399072021,19.85336,2738.3,2737.8,0.00368741]
[1739399072218,0.73041,2738.1,2737.2,3.2078]
[1739399072424,0.73045,2737.9,2737.2,3.2078]
[1739399072623,3.2078,2737.8,2737.2,3.2078]
[1739399072821,6.54993148,2737.3,2735.9,3.2078]
[1739399073020,0.05747954,2737.2,2736.3,3.2078]
[1739399073426,0.05747954,2737.2,2735.9,3.2078]
[1739399073729,6.54993148,2736.7,2735.9,3.2078]
[1739399073925,19.131,2736.6,2736.1,3.2078]
[1739399074226,0.00548216,2737.0,2736.5,3.2078]
[1739399076229,0.00548216,2737.0,2736.3,3.2078]
[1739399076530,6.54993148,2737.9,2736.6,3.2078]
[1739399076722,1.8269,2740.4,2735.0,7.941]
[1739399076723,6.55993148,2739.3,2737.6,3.2078]
[1739399076929,6.55993148,2739.3,2737.9,3.2078]
[1739399077125,6.54993148,2738.7,2737.6,3.2078]
[1739399077326,19.135,2738.6,2737.6,3.2078]
[1739399077527,0.73036,2738.3,2737.6,3.2078]
[1739399077728,0.00548216,2738.4,2737.8,0.00548216]
[1739399077925,3.2078,2738.1,2737.8,0.00548216]
[1739399078133,0.73035,2738.3,2737.9,3.2078]
[1739399078338,3.2078,2738.3,2737.9,3.2078]
[1739399078532,0.73038,2738.2,2737.9,3.2078]
[1739399078835,0.00548216,2738.4,2737.8,0.00548216]
[1739399079040,0.73045,2737.9,2737.8,0.00548216]
[1739399079240,1.82606,2738.0,2736.6,3.2078]
[1739399079436,19.135,2738.8,2737.2,3.2078]
[1739399079738,6.54993148,2738.7,2737.2,3.2078]
[1739399080034,6.54993148,2738.1,2737.2,3.2078]
[1739399080339,9.75773148,2738.1,2736.4,3.2078]
[1739399080634,0.73073,2736.9,2736.4,3.2078]
[1739399080827,19.138,2736.8,2736.4,3.2078]
[1739399081336,19.138,2736.8,2736.7,3.2078]
[1739399081639,0.73079,2736.7,2736.4,3.2078]
[1739399081829,19.138,2736.8,2736.1,3.2078]
[1739399082137,3.21328216,2736.7,2736.1,3.2078]
[1739399082341,0.7309,2736.2,2736.1,3.2078]
[1739399082639,0.00548216,2736.7,2736.1,3.2078]
[1739399082834,0.00548216,2736.7,2735.6,3.2078]
[1739399083036,0.73104,2735.7,2735.6,3.2078]
[1739399083336,0.73104,2735.7,2733.8,1.9676]
[1739399083337,9.75773148,2736.3,2734.9,3.2078]
[1739399083539,3.2078,2735.7,2734.9,3.2078]
[1739399083733,5.03507,2736.2,2734.9,3.2078]
[1739399083934,0.00548216,2735.9,2734.9,3.2078]
[1739399084444,6.8758,2735.0,2731.9,3.2078]
[1739399084633,6.54993148,2733.1,2732.4,0.73191]
[1739399084934,0.00548216,2733.0,2732.7,3.2078]
[1739399085139,0.00548216,2733.0,2732.1,3.2078]
[1739399085637,6.54993148,2732.5,2732.1,3.2078]
[1739399085943,6.54993148,2732.5,2731.6,3.2078]
[1739399086442,6.54993148,2732.5,2731.5,1.9762]
[1739399086736,6.54993148,2732.5,2731.6,3.2078]
[1739399086940,3.2078,2732.2,2731.6,3.2078]
[1739399087138,6.54993148,2731.9,2731.3,3.2078]
[1739399087340,28.90873148,2731.9,2731.3,3.2078]
[1739399087542,0.73213,2731.7,2730.1,1.8939]
[1739399087731,6.54993148,2731.2,2730.1,1.8939]
[1739399088036,0.00549249,2730.9,2730.5,3.2078]
[1739399088430,6.54993148,2733.1,2730.8,3.2078]
[1739399088646,6.54993148,2733.1,2731.6,3.2078]
[1739399088840,6.54993148,2733.7,2732.1,3.2078]
[1739399089138,19.151,2734.1,2730.9,4.8338035]
[1739399089139,6.54993148,2732.5,2732.0,3.2078]
[1739399089337,0.73192,2732.4,2731.7,3.2078]
[1739399089537,0.73195,2732.3,2731.7,3.2078]
[1739399089834,0.73216,2731.6,2730.8,3.2078]
[1739399090034,0.73208,2731.8,2731.7,0.00549249]
[1739399090346,0.73216,2731.6,2730.8,3.2078]
[1739399090641,6.54993148,2731.9,2730.8,3.2078]
[1739399090940,3.93973,2732.4,2731.2,0.73221]
[1739399091142,0.00549249,2732.5,2731.5,0.73216]
[1739399091346,0.00549249,2732.5,2731.6,0.73212]
[1739399091833,0.00549249,2732.5,2731.5,3.2078]
[1739399092035,0.00549249,2732.5,2731.7,0.73208]
[1739399092237,0.00549249,2732.5,2731.5,3.2078]
[1739399092431,0.00549249,2732.5,2731.8,3.2078]
[1739399092841,0.00549249,2732.5,2732.1,0.00287608]
[1739399093239,19.166,2733.2,2732.1,6.00287608]
[1739399093437,19.89771,2733.2,2732.2,0.73197]
[1739399093637,19.89767,2733.4,2732.1,3.21067608]
[1739399093839,6.54993148,2733.2,2732.1,0.00287608]
[1739399094044,0.73185,2732.7,2732.1,0.00287608]
[1739399094243,6.54993148,2733.2,2732.1,0.00287608]
[1739399094543,3.2078,2734.3,2732.7,3.2078]
[1739399094742,3.2078,2734.3,2733.4,3.2078]
[1739399094940,3.2078,2734.3,2732.7,3.2078]
[1739399095138,0.05755646,2734.2,2732.7,3.2078]
[1739399095336,3.2078,2732.9,2732.1,0.00287608]
[1739399095537,1.8296,2732.7,2731.1,3.2078]
[1739399095739,0.73195,2732.3,2731.2,0.73223]
[1739399095950,0.73195,2732.3,2730.0,6.54993148]
[1739399095951,6.54993148,2732.5,2731.5,3.2078]
[1739399096146,6.54993148,2732.5,2731.4,3.2078]
[1739399096444,0.73199,2732.2,2731.4,3.2078]
[1739399096644,6.54993148,2732.5,2731.4,3.2078]
[1739399096844,0.73196,2732.3,2731.4,3.2078]
[1739399097047,0.00549249,2732.1,2731.5,0.00549249]
[1739399097238,0.00549249,2732.1,2731.8,0.73207]
[1739399097441,0.00549249,2732.1,2731.8,3.93986]
[1739399097647,0.00549249,2732.1,2731.8,3.2078]
[1739399097846,0.00549249,2732.1,2732.0,0.73203]
[1739399098947,19.172,2733.6,2732.0,6.0]
[1739399099150,19.172,2733.6,2732.4,3.2078]
[1739399099348,0.05756783,2733.5,2732.1,3.2078]
[1739399100040,3.2078,2733.3,2732.1,3.2078]
[1739399100240,3.2078,2732.8,2732.1,3.2078]
[1739399100444,0.00549249,2733.1,2732.1,3.2078]
[1739399100445,0.73723249,2733.1,2732.2,0.73197]
[1739399100646,0.00549249,2733.1,2732.4,3.2078]
[1739399101248,0.00549249,2733.1,2732.5,0.73188]
[1739399101547,6.54993148,2734.3,2732.4,3.2078]
[1739399101741,0.73172,2733.2,2732.5,3.2078]
[1739399101947,3.2078,2732.8,2732.2,3.2078]
[1739399102751,3.21329249,2732.8,2732.2,0.00549249]
[1739399103446,0.05759036,2732.7,2732.2,0.00549249]
[1739399103641,6.54993148,2732.5,2731.2,3.2078]
[1739399103843,3.2078,2732.3,2731.2,3.2078]
[1739399104048,0.05759669,2732.2,2731.2,3.2078]
[1739399104254,3.26539669,2732.2,2731.2,3.2078]
[1739399104452,0.05759669,2732.1,2731.2,3.2078]
[1739399104650,3.2078,2731.6,2730.7,3.2078]
[1739399104848,19.90716,2731.5,2731.4,0.00549249]
[1739399105253,25.90716,2731.5,2731.4,0.00549249]
[1739399105448,31.78255148,2731.5,2730.5,3.2078]
[1739399105642,6.54993148,2731.0,2729.5,3.2078]
[1739399105848,19.175,2731.5,2729.2,3.2078]
[1739399105849,6.54993148,2730.4,2729.2,3.2078]
[1739399106048,0.7325,2730.3,2729.2,3.2078]
[1739399106256,6.54993148,2730.4,2729.6,0.73265]
[1739399106451,19.175,2731.0,2730.0,3.2078]
[1739399106756,0.00549249,2730.3,2730.2,0.73251]
[1739399106959,10.48979148,2731.9,2730.5,0.7324]
[1739399106960,22.3888,2731.2,2730.5,0.7324]
[1739399107153,19.181,2731.2,2730.0,3.2078]
[1739399107352,19.181,2731.2,2730.4,3.2078]
[1739399107553,19.181,2731.2,2730.5,3.2078]
[1739399107755,9.75773148,2731.9,2730.9,3.2078]
[1739399107960,9.75773148,2731.9,2730.5,3.2078]
[1739399108251,0.00549249,2731.7,2731.1,0.00549249]
[1739399108452,3.2078,2731.4,2731.1,0.00549249]
[1739399108755,0.00549249,2731.7,2731.1,0.00549249]
[1739399109556,3.2078,2731.5,2731.1,0.00549249]
[1739399110149,0.73224,2731.2,2731.1,0.00549249]
[1739399110360,3.2078,2731.2,2730.4,3.2078]
[1739399110549,3.2078,2731.2,2730.1,3.2078]
[1739399110750,0.7323,2731.0,2730.1,3.2078]
[1739399111059,3.2078,2731.2,2728.6,0.53119037]
[1739399111060,3.2078,2730.8,2729.7,3.2078]
[1739399111249,3.2078,2730.2,2729.7,3.2078]
[1739399111448,3.2078,2730.2,2730.0,0.00549249]
[1739399112048,3.2078,2730.2,2729.3,3.2078]
[1739399112049,6.54993148,2730.1,2728.4,3.2078]
[1739399112260,0.73269,2729.6,2728.3,5.1055]
[1739399112451,3.2078,2729.8,2728.3,5.1055]
[1739399112646,3.2078,2729.5,2728.3,3.2078]
[1739399112956,3.9405,2729.5,2728.3,3.2078]
[1739399113147,3.2078,2729.5,2728.3,3.2078]
[1739399113351,10.49028148,2730.1,2729.1,0.7328]
[1739399113554,10.49028148,2730.1,2728.6,3.2078]
[1739399113555,3.2078,2730.1,2728.6,3.2078]
[1739399113755,2.49e-06,2729.9,2729.0,3.2078]
[1739399113958,3.2078,2731.0,2730.9,0.73232]
[1739399114254,19.188,2731.5,2730.9,0.73232]
[1739399114464,19.188,2731.5,2730.6,3.2078]
[1739399114755,19.188,2731.5,2730.1,3.2078]
[1739399114953,19.188,2731.5,2730.5,0.00549249]
[1739399115159,19.188,2731.5,2730.5,3.21329249]
[1739399115160,0.00549249,2731.1,2730.5,3.21329249]
[1739399115352,0.00549249,2731.1,2730.5,0.00549249]
[1739399115553,3.2078,2731.0,2730.5,0.00549249]
[1739399116556,0.73238,2730.7,2730.5,0.00549249]
[1739399116859,0.73237,2730.8,2730.5,0.00549249]
[1739399117055,3.2078,2731.0,2730.9,0.73231]
[1739399117454,0.00549249,2731.1,2730.5,0.00549249]
[1739399117455,0.00549249,2731.1,2730.8,0.73234]
[1739399117748,0.00549249,2731.1,2730.9,0.7323]
[1739399117957,0.00549249,2731.1,2730.5,0.00549249]
[1739399118154,0.00549249,2731.1,2731.0,0.73229]
[1739399119656,0.00549249,2731.1,2730.7,3.2078]
[1739399120153,0.00549249,2731.1,2730.7,0.73235]
[1739399120658,0.00549249,2731.1,2730.5,0.00549249]
[1739399121055,0.00549249,2731.1,2730.9,0.7323]
[1739399121656,0.00549249,2731.1,2730.5,0.00549249]
[1739399121657,2.49e-06,2731.1,2731.0,3.94009]
[1739399122655,2.49e-06,2731.1,2731.0,3.2078]
[1739399122856,2.49e-06,2731.1,2730.5,0.00549249]
[1739399123057,0.73229,2731.0,2730.5,0.73791249]
[1739399123355,2.49e-06,2731.1,2730.6,0.73239]
[1739399123356,0.73228249,2731.1,2730.6,0.73239]
[1739399123560,2.49e-06,2731.1,2730.6,0.73238]
[1739399123761,0.73236,2730.8,2730.5,0.00549249]
[1739399123963,0.73239,2730.7,2730.5,0.00549249]
[1739399124154,2.49e-06,2731.1,2730.5,0.00549249]
[1739399124856,2.49e-06,2731.1,2731.0,0.73229]
[1739399125262,2.49e-06,2731.1,2731.0,6.73229]
[1739399125654,2.49e-06,2731.1,2731.0,7.11641163]